[Event "RUS-ch Girls U21 2020"]
[Site "Moscow"]
[Date "2020.12.13"]
[Round "6.3"]
[White "Dimitrova, Aleksandra"]
[Black "Afonasieva, Anna"]
[Result "1/2-1/2"]
[ECO "B90"]
[WhiteElo "2193"]
[BlackElo "2316"]
[Annotator "ChessBase"]
[PlyCount "83"]
[EventDate "2020.12.08"]
[EventType "tourn"]
[EventCountry "RUS"]
[SourceTitle "playchess.com"]
[Source "ChessBase"]
[SourceQuality "1"]
[TimeControl "40/5400+30:1800+30"]

1. e4 {[%emt 0:00:00]} c5 {[%emt 0:00:00]} 2. Nf3 {[%emt 0:00:00]} d6 {[%emt 0:00:00]} 3. d4 {[%emt 0:00:00]} cxd4 {[%emt 0:00:00]} 4. Nxd4 {[%emt 0:00:00]} Nf6 {[%emt 0:00:00]} 5. Nc3 {[%emt 0:00:00]} a6 {[%emt 0:00:00]} 6. Nb3 {[%emt 0:00:00]} e6 {[%emt 0:00:09]} 7. g4 {[%emt 0:00:03]} b5 {[%emt 0:00:17]} 8. Bg2 {[%emt 0:00:30]} Bb7 {[%emt 0:00:22]} 9. g5 {[%emt 0:00:32]} Nfd7 {[%emt 0:00:06]} 10. O-O {[%emt 0:02:29]} b4 {[%emt 0:02:12]} 11. Ne2 {[%emt 0:00:33]} Nc6 {[%emt 0:00:40]} 12. f4 {[%emt 0:03:51]} Be7 {[%emt 0:00:34]} 13. Ng3 {[%emt 0:03:13]} a5 {[%emt 0:03:32]} 14. Be3 {[%emt 0:04:58]} Rc8 {[%emt 0:09:00]} 15. a3 {[%emt 0:13:37]} O-O {[%emt 0:08:54]} 16. axb4 {[%emt 0:08:19]} axb4 {[%emt 0:00:10]} 17. h4 {[%emt 0:15:25]} Ra8 {[%emt 0:09:21]} 18. Qe2 {[%emt 0:08:02]} Qc7 {[%emt 0:04:05]} 19. h5 {[%emt 0:05:25]} Rxa1 {[%emt 0:04:56]} 20. Rxa1 {[%emt 0:00:31]} Ra8 {[%emt 0:00:33]} 21. Rd1 {[%emt 0:00:57]} Ra2 {[%emt 0:02:33]} 22. g6 {[%emt 0:05:25]} Rxb2 {[%emt 0:05:33]} 23. gxf7+ {[%emt 0:00:58]} Kxf7 {[%emt 0:00:07]} 24. Qc4 {[%emt 0:02:14]} Qc8 {[%emt 0:02:44]} 25. e5 {[%emt 0:05:24]} dxe5 {[%emt 0:12:09]} 26. Bc1 {[%emt 0:06:33]} Ra2 {[%emt 0:03:47]} 27. Nd4 {[%emt 0:01:31]} Nxd4 {[%emt 0:01:54]} 28. Qxa2 {[%emt 0:00:02]} Bxg2 {[%emt 0:02:49]} 29. Kxg2 {[%emt 0:00:03]} Qc6+ {[%emt 0:00:06]} 30. Kh3 {[%emt 0:00:15]} Ne2 {[%emt 0:09:26]} 31. f5 {[%emt 0:04:02]} Nf4+ {[%emt 0:07:06]} 32. Bxf4 {[%emt 0:00:54]} exf4 {[%emt 0:00:04]} 33. Qxe6+ {[%emt 0:04:18]} Qxe6 {[%emt 0:00:05]} 34. fxe6+ {[%emt 0:00:03]} Kxe6 {[%emt 0:00:05]} 35. Ne2 {[%emt 0:01:05]} Ne5 {[%emt 0:07:20]} 36. Nxf4+ {[%emt 0:00:25]} Kf5 {[%emt 0:00:05]} 37. Nd5 {[%emt 0:02:46]} Bc5 {[%emt 0:00:12]} 38. Nc7 {[%emt 0:01:36]} g5 {[%emt 0:02:57]} 39. hxg6 {[%emt 0:02:38]} hxg6 {[%emt 0:00:08]} 40. Rd5 {[%emt 0:00:00]} Bf8 {[%emt 0:00:00]} 41. Rb5 {[%emt 0:07:33]} Ke4 {[%emt 0:05:06]} 42. Na6 {[%emt 0:06:50]} 1/2-1/2

[Event "RUS-ch Girls U21 2020"]
[Site "Moscow"]
[Date "2020.12.13"]
[Round "6.4"]
[White "Shafigullina, Zarina"]
[Black "Korchagina, Alena"]
[Result "1-0"]
[ECO "A04"]
[WhiteElo "2302"]
[BlackElo "2161"]
[Annotator "ChessBase"]
[PlyCount "79"]
[EventDate "2020.12.08"]
[EventType "tourn"]
[EventCountry "RUS"]
[SourceTitle "playchess.com"]
[Source "ChessBase"]
[SourceQuality "1"]
[TimeControl "40/5400+30:1800+30"]

1. Nf3 {[%emt 0:00:00]} c5 {[%emt 0:00:27]} 2. c4 {[%emt 0:01:25]} Nf6 {[%emt 0:00:08]} 3. g3 {[%emt 0:00:08]} b6 {[%emt 0:00:08]} 4. Bg2 {[%emt 0:00:08]} Bb7 {[%emt 0:00:04]} 5. Nc3 {[%emt 0:00:23]} e6 {[%emt 0:00:06]} 6. d4 {[%emt 0:02:38]} cxd4 {[%emt 0:00:26]} 7. Qxd4 {[%emt 0:00:06]} d6 {[%emt 0:02:01]} 8. Bg5 {[%emt 0:04:06]} Be7 {[%emt 0:09:11]} 9. Rd1 {[%emt 0:00:10]} O-O {[%emt 0:08:24]} 10. O-O {[%emt 0:15:33]} Nbd7 {[%emt 0:04:53]} 11. e4 {[%emt 0:05:09]} a6 {[%emt 0:00:43]} 12. Rfe1 {[%emt 0:00:57]} Qc7 {[%emt 0:03:29]} 13. Rc1 {[%emt 0:13:29]} h6 {[%emt 0:05:14]} 14. Bd2 {[%emt 0:01:15]} Rac8 {[%emt 0:00:06]} 15. b3 {[%emt 0:00:06]} Qb8 {[%emt 0:00:27]} 16. Qd3 {[%emt 0:00:43]} Ne5 {[%emt 0:06:54]} 17. Qe2 {[%emt 0:00:25]} Nfd7 {[%emt 0:01:08]} 18. Nd4 {[%emt 0:07:26]} Nc5 {[%emt 0:03:53]} 19. Rc2 {[%emt 0:00:14]} Bf6 {[%emt 0:01:55]} 20. Be3 {[%emt 0:02:16]} Qa8 {[%emt 0:04:11]} 21. f3 {[%emt 0:01:28]} Ned3 {[%emt 0:13:02]} 22. Rd1 {[%emt 0:00:42]} Nb4 {[%emt 0:00:05]} 23. Rcc1 {[%emt 0:03:46]} Rfd8 {[%emt 0:06:53]} 24. Bf2 {[%emt 0:02:17]} Nc6 {[%emt 0:03:18]} 25. f4 {[%emt 0:03:43]} Nxd4 {[%emt 0:02:47]} 26. Bxd4 {[%emt 0:00:07]} Bxd4+ {[%emt 0:00:03]} 27. Rxd4 {[%emt 0:00:08]} e5 {[%emt 0:03:34]} 28. Rdd1 {[%emt 0:12:27]} Ne6 {[%emt 0:05:18]} 29. Nd5 {[%emt 0:04:00]} Bxd5 {[%emt 0:03:54]} 30. exd5 {[%emt 0:00:39]} Nd4 {[%emt 0:00:03]} 31. Qh5 {[%emt 0:04:57]} g6 {[%emt 0:06:53]} 32. Qxh6 {[%emt 0:00:43]} Ne2+ {[%emt 0:00:37]} 33. Kh1 {[%emt 0:00:28]} Nxc1 {[%emt 0:00:56]} 34. f5 {[%emt 0:03:51]} gxf5 {[%emt 0:00:05]} 35. Rf1 {[%emt 0:03:22]} f4 {[%emt 0:01:17]} 36. Be4 {[%emt 0:02:15]} Rc7 {[%emt 0:01:46]} 37. gxf4 {[%emt 0:00:34]} Ne2 {[%emt 0:00:04]} 38. Bh7+ {[%emt 0:00:34]} Kh8 {[%emt 0:00:04]} 39. Bd3+ {[%emt 0:00:17]} Kg8 {[%emt 0:00:03]} 40. Bxe2 {[%emt 0:00:00]} 1-0

[Event "RUS-ch Girls U21 2020"]
[Site "Moscow"]
[Date "2020.12.13"]
[Round "6.5"]
[White "Obolentseva, Alexandra"]
[Black "Nazarova, Anastasia"]
[Result "1-0"]
[ECO "E97"]
[WhiteElo "2305"]
[BlackElo "2190"]
[Annotator "ChessBase"]
[PlyCount "129"]
[EventDate "2020.12.08"]
[EventType "tourn"]
[EventCountry "RUS"]
[SourceTitle "playchess.com"]
[Source "ChessBase"]
[SourceQuality "1"]
[TimeControl "40/5400+30:1800+30"]

1. d4 {[%emt 0:00:00]} Nf6 {[%emt 0:00:00]} 2. c4 {[%emt 0:00:00]} g6 {[%emt 0:00:00]} 3. Nc3 {[%emt 0:00:00]} Bg7 {[%emt 0:00:00]} 4. e4 {[%emt 0:00:02]} d6 {[%emt 0:00:00]} 5. Be2 {[%emt 0:00:07]} O-O {[%emt 0:00:00]} 6. Nf3 {[%emt 0:02:47]} e5 {[%emt 0:00:16]} 7. O-O {[%emt 0:01:32]} Nc6 {[%emt 0:00:09]} 8. d5 {[%emt 0:00:06]} Ne7 {[%emt 0:00:05]} 9. b4 {[%emt 0:00:06]} a5 {[%emt 0:00:21]} 10. bxa5 {[%emt 0:00:27]} Rxa5 {[%emt 0:00:23]} 11. Nd2 {[%emt 0:00:45]} Ne8 {[%emt 0:00:52]} 12. Nb3 {[%emt 0:00:18]} Ra8 {[%emt 0:00:11]} 13. c5 {[%emt 0:03:34]} f5 {[%emt 0:09:17]} 14. f3 {[%emt 0:01:39]} f4 {[%emt 0:07:11]} 15. a4 {[%emt 0:00:32]} g5 {[%emt 0:00:24]} 16. Ba3 {[%emt 0:01:42]} Ng6 {[%emt 0:03:18]} 17. Nd2 {[%emt 0:00:22]} Rf6 {[%emt 0:03:23]} 18. Nb5 {[%emt 0:02:03]} Nh8 {[%emt 0:04:01]} 19. Nc4 {[%emt 0:01:45]} Nf7 {[%emt 0:00:17]} 20. cxd6 {[%emt 0:01:53]} cxd6 {[%emt 0:03:14]} 21. a5 {[%emt 0:00:29]} Bd7 {[%emt 0:11:03]} 22. Rb1 {[%emt 0:03:14]} h5 {[%emt 0:05:22]} 23. Qe1 {[%emt 0:01:33]} Rg6 {[%emt 0:04:58]} 24. Nb6 {[%emt 0:04:35]} Rb8 {[%emt 0:01:31]} 25. Qd2 {[%emt 0:05:42]} g4 {[%emt 0:04:34]} 26. Nxd7 {[%emt 0:00:09]} Qxd7 {[%emt 0:00:09]} 27. Nc3 {[%emt 0:02:11]} Ra8 {[%emt 0:04:51]} 28. Bb5 {[%emt 0:00:07]} Qe7 {[%emt 0:01:37]} 29. a6 {[%emt 0:06:02]} bxa6 {[%emt 0:04:10]} 30. Bc6 {[%emt 0:00:08]} Rd8 {[%emt 0:03:09]} 31. Qe1 {[%emt 0:04:48]} Qg5 {[%emt 0:07:19]} 32. Rb2 {[%emt 0:00:11]} Nf6 {[%emt 0:01:08]} 33. Kh1 {[%emt 0:00:41]} h4 {[%emt 0:03:54]} 34. fxg4 {[%emt 0:04:37]} Nxg4 {[%emt 0:01:43]} 35. Nd1 {[%emt 0:00:19]} Qh5 {[%emt 0:05:17]} 36. Qe2 {[%emt 0:06:48]} Ng5 {[%emt 0:05:04]} 37. Nf2 {[%emt 0:03:34]} Nxf2+ {[%emt 0:02:26]} 38. Rxf2 {[%emt 0:00:06]} Qh7 {[%emt 0:03:29]} 39. h3 {[%emt 0:03:23]} Rf6 {[%emt 0:01:20]} 40. Rb4 {[%emt 0:00:00]} a5 {[%emt 0:00:00]} 41. Rc4 {[%emt 0:01:24]} Rb8 {[%emt 0:05:43]} 42. Bd7 {[%emt 0:01:11]} Bf8 {[%emt 0:16:41]} 43. Qg4 {[%emt 0:00:59]} Qg7 {[%emt 0:00:08]} 44. Rb2 {[%emt 0:08:57]} Rxb2 {[%emt 0:00:08]} 45. Bxb2 {[%emt 0:00:05]} f3 {[%emt 0:07:44]} 46. gxf3 {[%emt 0:05:18]} Nxf3 {[%emt 0:02:22]} 47. Bf5 {[%emt 0:01:33]} Qxg4 {[%emt 0:00:48]} 48. hxg4 {[%emt 0:00:08]} Bh6 {[%emt 0:01:06]} 49. Bc3 {[%emt 0:00:59]} Rf8 {[%emt 0:02:00]} 50. Kg2 {[%emt 0:00:41]} Ng5 {[%emt 0:00:33]} 51. Rc6 {[%emt 0:00:21]} Rd8 {[%emt 0:00:32]} 52. Bxe5 {[%emt 0:02:02]} Re8 {[%emt 0:01:01]} 53. Rxd6 {[%emt 0:02:46]} Rxe5 {[%emt 0:00:21]} 54. Rxh6 {[%emt 0:00:15]} Nxe4 {[%emt 0:00:17]} 55. d6 {[%emt 0:00:09]} h3+ {[%emt 0:00:57]} 56. Kxh3 {[%emt 0:01:38]} Nxd6 {[%emt 0:00:36]} 57. Rxd6 {[%emt 0:00:08]} a4 {[%emt 0:00:07]} 58. Ra6 {[%emt 0:00:11]} Re3+ {[%emt 0:00:05]} 59. Kh4 {[%emt 0:00:04]} a3 {[%emt 0:00:03]} 60. Kg5 {[%emt 0:00:05]} Kf7 {[%emt 0:00:56]} 61. Ra7+ {[%emt 0:00:48]} Ke8 {[%emt 0:00:17]} 62. Kf6 {[%emt 0:00:07]} Kd8 {[%emt 0:00:25]} 63. g5 {[%emt 0:00:09]} a2 {[%emt 0:00:55]} 64. Rxa2 {[%emt 0:00:08]} Rg3 {[%emt 0:00:54]} 65. g6 {[%emt 0:00:23]} 1-0

[Event "RUS-ch Girls U21 2020"]
[Site "Moscow"]
[Date "2020.12.15"]
[Round "8.1"]
[White "Protopopova, Anastasiya"]
[Black "Nosacheva, Mariya"]
[Result "1/2-1/2"]
[ECO "E73"]
[WhiteElo "2267"]
[BlackElo "2243"]
[Annotator "RC"]
[PlyCount "88"]
[EventDate "2020.12.08"]
[EventType "tourn"]
[EventCountry "RUS"]
[SourceTitle "playchess.com"]
[Source "ChessBase"]
[SourceQuality "1"]
[TimeControl "40/5400+30:1800+30"]

1. d4 {[%emt 0:00:00]} Nf6 {[%emt 0:00:00]} 2. c4 {[%emt 0:00:00]} g6 {[%emt 0:00:00]} 3. Nc3 {[%emt 0:00:00]} Bg7 {[%emt 0:00:00]} 4. e4 d6 {[%emt 0:00:00]} 5. Be2 {[%emt 0:00:00]} O-O {[%emt 0:00:56]} 6. Bg5 {[%emt 0:00:00]} Na6 7. Qd2 {[%emt 0:00:18]} c6 {[%emt 0:00:43]} 8. f3 {[%emt 0:02:43]} Nc7 {[%emt 0:04:37]} 9. h4 d5 {[%emt 0:12:18]} 10. cxd5 {[%emt 0:12:28]} cxd5 {[%emt 0:01:00]} 11. e5 {[%emt 0:00:55]} Nh5 {[%emt 0:02:28]} 12. Bd3 {[%emt 0:01:33]} f6 {[%emt 0:00:22]} 13. g4 {[%emt 0:15:25]} Ng3 {[%emt 0:07:24]} 14. Rh3 {[%emt 0:00:06]} fxg5 {[%emt 0:01:09]} 15. Rxg3 {[%emt 0:00:30]} gxh4 {[%emt 0:02:00]} 16. Rh3 {[%emt 0:01:35]} b5 {[%emt 0:00:09]} 17. Qg5 {[%emt 0:14:57]} Ne6 18. Qxh4 {[%emt 0:00:09]} Nf4 {[%emt 0:02:28]} 19. O-O-O {[%emt 0:03:49]} Nxh3 {[%emt 0:05:13]} 20. Nxh3 {[%emt 0:02:05]} e6 {[%emt 0:00:07]} 21. Qg3 {[%emt 0:03:26]} b4 {[%emt 0:01:09]} 22. Ne2 {[%emt 0:10:09]} Qa5 {[%emt 0:00:29]} 23. Kb1 {[%emt 0:00:05]} Ba6 {[%emt 0:00:05]} 24. f4 {[%emt 0:08:08]} Rac8 {[%emt 0:18:11]} 25. Ng5 {[%emt 0:02:16]} b3 26. axb3 {[%emt 0:00:07]} Bxd3+ {[%emt 0:06:56]} 27. Qxd3 {[%emt 0:03:28]} Rc6 {[%emt 0:02:46]} 28. Rh1 {[%emt 0:01:46]} Ra6 29. Kc2 {[%emt 0:00:06]} Rc6+ {[%emt 0:03:41]} 30. Kb1 {[%emt 0:03:28]} Rfc8 {[%emt 0:02:33]} 31. Rxh7 {[%emt 0:00:19]} Ra6 32. Nc3 {[%emt 0:00:01]} Qa1+ {[%emt 0:03:26]} 33. Kc2 {[%emt 0:00:27]} Ra2 {[%emt 0:00:00]} 34. Rh8+ {[%emt 0:00:30]} Kxh8 {[%emt 0:00:09]} 35. Qh3+ {[%emt 0:00:00]} Kg8 36. Qh7+ {[%emt 0:00:00]} Kf8 {[%emt 0:00:06]} 37. Nxe6+ {[%emt 0:00:19]} Ke7 {[%emt 0:00:01]} 38. Qxg7+ {[%emt 0:01:56]} Kxe6 39. Qxg6+ {[%emt 0:00:00]} Ke7 {[%emt 0:02:23]} 40. Qd6+ {[%emt 0:00:00]} Ke8 {[%emt 0:00:00]} 41. Qe6+ {[%emt 0:05:28]} Kd8 {[%emt 0:00:15]} 42. Qxd5+ {[%emt 0:04:00]} Ke7 {[%emt 0:00:06]} 43. Qd6+ {[%emt 0:00:30]} Ke8 {[%emt 0:00:30]} 44. Qg6+ {[%emt 0:05:29]} Kd8 {[%emt 0:00:47]} 1/2-1/2

[Event "RUS-ch Girls U21 2020"]
[Site "Moscow"]
[Date "2020.12.15"]
[Round "8.2"]
[White "Dimitrova, Aleksandra"]
[Black "Borisova, Ekaterina"]
[Result "1-0"]
[ECO "C70"]
[WhiteElo "2193"]
[BlackElo "2308"]
[Annotator "RC"]
[PlyCount "81"]
[EventDate "2020.12.08"]
[EventType "tourn"]
[EventCountry "RUS"]
[SourceTitle "playchess.com"]
[Source "ChessBase"]
[SourceQuality "1"]
[TimeControl "40/5400+30:1800+30"]

1. e4 {[%emt 0:00:00]} e5 {[%emt 0:00:00]} 2. Nf3 {[%emt 0:00:00]} Nc6 {[%emt 0:00:00]} 3. Bb5 {[%emt 0:00:24]} a6 {[%emt 0:00:00]} 4. Ba4 {[%emt 0:00:23]} b5 {[%emt 0:00:00]} 5. Bb3 {[%emt 0:00:26]} Na5 {[%emt 0:00:00]} 6. Bxf7+ {[%emt 0:18:36]} Kxf7 {[%emt 0:00:04]} 7. Nxe5+ {[%emt 0:00:03]} Ke7 {[%emt 0:10:37]} 8. d4 {[%emt 0:00:31]} d6 {[%emt 0:03:00]} 9. Nd3 {[%emt 0:05:43]} Qd7 {[%emt 0:07:31]} 10. O-O {[%emt 0:01:44]} Kd8 {[%emt 0:01:51]} 11. b3 {[%emt 0:05:56]} Nc6 {[%emt 0:18:38]} 12. Bb2 {[%emt 0:02:12]} Nf6 {[%emt 0:04:14]} 13. Nd2 {[%emt 0:20:15]} d5 {[%emt 0:05:17]} 14. e5 {[%emt 0:09:13]} Ng8 {[%emt 0:08:02]} 15. c4 {[%emt 0:03:09]} Nb4 {[%emt 0:05:05]} 16. Nc5 {[%emt 0:02:22]} Bxc5 {[%emt 0:01:11]} 17. dxc5 {[%emt 0:00:02]} Ne7 {[%emt 0:01:03]} 18. e6 {[%emt 0:08:41]} Qxe6 {[%emt 0:06:12]} 19. Nf3 {[%emt 0:00:36]} Qf5 {[%emt 0:07:04]} 20. Nd4 {[%emt 0:01:33]} Qd3 {[%emt 0:02:04]} 21. a3 {[%emt 0:01:10]} Qxd1 {[%emt 0:01:19]} 22. Raxd1 {[%emt 0:00:11]} Nbc6 {[%emt 0:00:22]} 23. Nxc6+ {[%emt 0:01:37]} Nxc6 {[%emt 0:00:04]} 24. cxd5 {[%emt 0:02:32]} Na5 {[%emt 0:01:05]} 25. Bxg7 {[%emt 0:01:39]} Rg8 {[%emt 0:00:04]} 26. Bf6+ {[%emt 0:00:14]} Ke8 {[%emt 0:02:01]} 27. Rd3 {[%emt 0:00:32]} Kf7 {[%emt 0:05:01]} 28. Be5 {[%emt 0:00:41]} c6 {[%emt 0:00:52]} 29. Bc7 {[%emt 0:02:29]} Nb7 {[%emt 0:02:31]} 30. Rf3+ {[%emt 0:02:47]} Kg6 {[%emt 0:00:05]} 31. dxc6 {[%emt 0:05:08]} Nxc5 {[%emt 0:00:22]} 32. Re1 {[%emt 0:01:26]} Bg4 {[%emt 0:04:05]} 33. Rg3 {[%emt 0:00:22]} Kf7 {[%emt 0:00:09]} 34. h3 {[%emt 0:00:43]} Ne6 {[%emt 0:03:01]} 35. Bb6 {[%emt 0:01:44]} Bh5 {[%emt 0:02:01]} 36. Rge3 {[%emt 0:01:24]} Rge8 {[%emt 0:00:55]} 37. c7 {[%emt 0:01:03]} Bg6 {[%emt 0:00:56]} 38. f4 {[%emt 0:00:35]} Rac8 {[%emt 0:00:42]} 39. g4 {[%emt 0:00:39]} Bc2 {[%emt 0:01:12]} 40. Rc3 {[%emt 0:00:00]} Nxc7 {[%emt 0:00:00]} 41. Rxe8 {[%emt 0:01:39]} 1-0

[Event "RUS-ch Girls U21 2020"]
[Site "Moscow"]
[Date "2020.12.15"]
[Round "8.5"]
[White "Nazarova, Anastasia"]
[Black "Korchagina, Alena"]
[Result "1-0"]
[ECO "C95"]
[WhiteElo "2190"]
[BlackElo "2161"]
[Annotator "RC"]
[PlyCount "77"]
[EventDate "2020.12.08"]
[EventType "tourn"]
[EventCountry "RUS"]
[SourceTitle "playchess.com"]
[Source "ChessBase"]
[SourceQuality "1"]
[TimeControl "40/5400+30:1800+30"]

1. e4 {[%emt 0:00:00]} e5 {[%emt 0:00:00]} 2. Nf3 {[%emt 0:00:00]} Nc6 {[%emt 0:00:00]} 3. Bb5 {[%emt 0:00:00]} a6 {[%emt 0:00:00]} 4. Ba4 {[%emt 0:00:00]} Nf6 {[%emt 0:00:00]} 5. O-O {[%emt 0:00:00]} Be7 {[%emt 0:00:00]} 6. Re1 {[%emt 0:00:00]} b5 {[%emt 0:00:04]} 7. Bb3 {[%emt 0:00:00]} d6 {[%emt 0:00:06]} 8. c3 {[%emt 0:00:02]} O-O {[%emt 0:00:05]} 9. h3 {[%emt 0:00:06]} Nb8 {[%emt 0:00:05]} 10. d4 {[%emt 0:00:07]} Nbd7 {[%emt 0:00:05]} 11. c4 {[%emt 0:00:07]} Bb7 {[%emt 0:02:59]} 12. Nc3 {[%emt 0:06:55]} c6 {[%emt 0:02:10]} 13. c5 {[%emt 0:08:44]} exd4 {[%emt 0:06:10]} 14. cxd6 {[%emt 0:00:05]} dxc3 {[%emt 0:04:47]} 15. bxc3 {[%emt 0:07:34]} Bxd6 {[%emt 0:15:13]} 16. Qxd6 {[%emt 0:00:27]} c5 {[%emt 0:00:16]} 17. Qf4 {[%emt 0:36:28]} c4 {[%emt 0:11:09]} 18. Bc2 {[%emt 0:00:12]} Re8 {[%emt 0:00:08]} 19. Ba3 {[%emt 0:00:40]} Nf8 {[%emt 0:07:48]} 20. Bxf8 {[%emt 0:07:40]} Rxf8 {[%emt 0:00:05]} 21. Rad1 {[%emt 0:01:44]} Qe7 {[%emt 0:03:49]} 22. Qh4 {[%emt 0:12:11]} g6 {[%emt 0:04:39]} 23. e5 {[%emt 0:03:33]} Nd5 {[%emt 0:00:05]} 24. Ng5 {[%emt 0:00:17]} h5 {[%emt 0:00:16]} 25. Qg3 {[%emt 0:01:08]} Nxc3 {[%emt 0:14:01]} 26. e6 {[%emt 0:06:43]} fxe6 {[%emt 0:03:17]} 27. Nxe6 {[%emt 0:01:45]} Rf6 {[%emt 0:00:57]} 28. Nd4 {[%emt 0:02:16]} Qf7 {[%emt 0:09:15]} 29. Qxc3 {[%emt 0:01:14]} Rxf2 {[%emt 0:00:06]} 30. Be4 {[%emt 0:00:12]} Bxe4 {[%emt 0:01:11]} 31. Rxe4 {[%emt 0:00:01]} Rf8 {[%emt 0:00:12]} 32. Nf3 {[%emt 0:01:36]} Rxa2 {[%emt 0:00:56]} 33. Rd6 {[%emt 0:01:05]} Qa7+ {[%emt 0:08:17]} 34. Kh2 {[%emt 0:00:16]} Qg7 {[%emt 0:00:30]} 35. Qe3 {[%emt 0:01:05]} Qf7 {[%emt 0:03:22]} 36. Nh4 {[%emt 0:01:55]} Qc7 {[%emt 0:01:06]} 37. Qg3 {[%emt 0:00:47]} Rf7 {[%emt 0:00:53]} 38. Rxg6+ {[%emt 0:00:30]} Kh7 {[%emt 0:00:23]} 39. Re5 {[%emt 0:00:48]} 1-0

[Event "RUS-ch Girls U21 2020"]
[Site "Moscow"]
[Date "2020.12.16"]
[Round "9.2"]
[White "Afonasieva, Anna"]
[Black "Nazarova, Anastasia"]
[Result "1-0"]
[ECO "D00"]
[WhiteElo "2316"]
[BlackElo "2190"]
[Annotator "ChessBase"]
[PlyCount "65"]
[EventDate "2020.12.08"]
[EventType "tourn"]
[EventCountry "RUS"]
[SourceTitle "playchess.com"]
[Source "ChessBase"]
[SourceQuality "1"]
[TimeControl "40/5400+30:1800+30"]

1. d4 {[%emt 0:00:00]} d5 {[%emt 0:00:00]} 2. Bf4 {[%emt 0:00:00]} c5 {[%emt 0:00:00]} 3. e3 {[%emt 0:00:00]} Nc6 {[%emt 0:00:00]} 4. c3 {[%emt 0:00:00]} Qb6 {[%emt 0:00:07]} 5. Qb3 {[%emt 0:00:06]} c4 {[%emt 0:00:17]} 6. Qc2 {[%emt 0:00:12]} e5 {[%emt 0:00:11]} 7. dxe5 {[%emt 0:01:20]} Bf5 {[%emt 0:00:11]} 8. Qc1 {[%emt 0:01:42]} g5 {[%emt 0:00:11]} 9. Bxg5 {[%emt 0:02:10]} Nxe5 {[%emt 0:00:06]} 10. Nd2 {[%emt 0:01:20]} Nf6 {[%emt 0:02:16]} 11. Ngf3 {[%emt 0:06:01]} Nd3+ {[%emt 0:01:55]} 12. Bxd3 {[%emt 0:00:06]} Bxd3 {[%emt 0:00:39]} 13. Bf4 {[%emt 0:06:16]} Rg8 {[%emt 0:13:11]} 14. Ne5 {[%emt 0:03:31]} Ne4 {[%emt 0:27:14]} 15. Nxd3 {[%emt 0:13:12]} cxd3 {[%emt 0:00:03]} 16. Qd1 {[%emt 0:00:41]} O-O-O {[%emt 0:08:35]} 17. O-O {[%emt 0:02:43]} Qg6 {[%emt 0:08:17]} 18. g3 {[%emt 0:00:34]} Bd6 {[%emt 0:01:39]} 19. Nf3 {[%emt 0:03:25]} Qg4 {[%emt 0:04:00]} 20. Kg2 {[%emt 0:06:08]} Bxf4 {[%emt 0:06:52]} 21. exf4 {[%emt 0:00:15]} Rd6 {[%emt 0:00:58]} 22. Qxd3 {[%emt 0:12:25]} Rh6 {[%emt 0:08:24]} 23. Qxd5 {[%emt 0:09:11]} Qh3+ {[%emt 0:00:05]} 24. Kh1 {[%emt 0:00:26]} Rxg3 {[%emt 0:11:15]} 25. fxg3 {[%emt 0:01:14]} Nxg3+ {[%emt 0:00:04]} 26. Kg1 {[%emt 0:00:04]} Nxf1 {[%emt 0:01:27]} 27. Rxf1 {[%emt 0:00:42]} Rg6+ {[%emt 0:04:18]} 28. Ng5 {[%emt 0:00:32]} Qe3+ {[%emt 0:00:04]} 29. Kh1 {[%emt 0:00:11]} h6 {[%emt 0:00:55]} 30. Nxf7 {[%emt 0:00:51]} Qe7 {[%emt 0:00:30]} 31. Qf5+ {[%emt 0:02:05]} Qe6 {[%emt 0:01:02]} 32. Qxe6+ {[%emt 0:00:05]} Rxe6 {[%emt 0:00:04]} 33. Ne5 {[%emt 0:00:13]} 1-0

[Event "RUS-ch Girls U21 2020"]
[Site "Moscow"]
[Date "2020.12.16"]
[Round "9.5"]
[White "Nosacheva, Mariya"]
[Black "Dimitrova, Aleksandra"]
[Result "0-1"]
[ECO "B33"]
[WhiteElo "2243"]
[BlackElo "2193"]
[Annotator "ChessBase"]
[PlyCount "104"]
[EventDate "2020.12.08"]
[EventType "tourn"]
[EventCountry "RUS"]
[SourceTitle "playchess.com"]
[Source "ChessBase"]
[SourceQuality "1"]
[TimeControl "40/5400+30:1800+30"]

1. e4 {[%emt 0:00:00]} c5 {[%emt 0:00:00]} 2. Nf3 {[%emt 0:00:00]} Nc6 {[%emt 0:00:00]} 3. d4 {[%emt 0:00:00]} cxd4 {[%emt 0:00:00]} 4. Nxd4 {[%emt 0:00:00]} Nf6 {[%emt 0:00:00]} 5. Nc3 {[%emt 0:00:17]} e6 {[%emt 0:00:12]} 6. Ndb5 {[%emt 0:00:23]} Bc5 {[%emt 0:00:11]} 7. Bf4 {[%emt 0:00:18]} O-O {[%emt 0:00:13]} 8. Bc7 {[%emt 0:00:05]} Qe7 {[%emt 0:00:12]} 9. Bd6 {[%emt 0:00:07]} Bxd6 {[%emt 0:00:22]} 10. Qxd6 {[%emt 0:00:49]} Qd8 {[%emt 0:00:15]} 11. Nc7 {[%emt 0:02:03]} Rb8 {[%emt 0:01:26]} 12. Be2 {[%emt 0:00:21]} a6 {[%emt 0:14:39]} 13. e5 {[%emt 0:00:26]} Ne8 {[%emt 0:02:54]} 14. Nxe8 {[%emt 0:00:09]} Rxe8 {[%emt 0:00:10]} 15. f4 {[%emt 0:07:51]} f6 {[%emt 0:18:15]} 16. exf6 {[%emt 0:01:46]} Qxf6 {[%emt 0:01:44]} 17. O-O-O {[%emt 0:01:33]} b5 {[%emt 0:04:46]} 18. Rhf1 {[%emt 0:27:01]} Rb6 {[%emt 0:07:12]} 19. Ne4 {[%emt 0:11:37]} Qd8 {[%emt 0:02:51]} 20. Rf3 {[%emt 0:15:29]} Ne7 {[%emt 0:04:27]} 21. Qd3 {[%emt 0:00:57]} Nd5 {[%emt 0:08:33]} 22. Ng5 {[%emt 0:04:10]} g6 {[%emt 0:00:54]} 23. h4 {[%emt 0:00:07]} Rc6 {[%emt 0:07:53]} 24. Qd2 h6 {[%emt 0:10:29]} 25. Ne4 {[%emt 0:02:35]} Qxh4 {[%emt 0:00:30]} 26. g3 {[%emt 0:03:08]} Qe7 {[%emt 0:00:28]} 27. Rh1 {[%emt 0:00:45]} Qg7 {[%emt 0:01:04]} 28. g4 {[%emt 0:00:45]} Bb7 {[%emt 0:02:59]} 29. f5 {[%emt 0:00:42]} exf5 {[%emt 0:02:23]} 30. Qxd5+ {[%emt 0:00:18]} Ree6 {[%emt 0:02:49]} 31. Nc3 {[%emt 0:01:30]} fxg4 {[%emt 0:01:49]} 32. Rff1 {[%emt 0:04:04]} Rc7 {[%emt 0:01:29]} 33. Qd2 {[%emt 0:02:14]} Bxh1 {[%emt 0:00:06]} 34. Rxh1 {[%emt 0:00:04]} h5 {[%emt 0:00:39]} 35. Bd3 {[%emt 0:00:42]} Qe5 {[%emt 0:00:57]} 36. Kd1 {[%emt 0:07:24]} Rc8 {[%emt 0:01:31]} 37. Qh6 {[%emt 0:04:34]} Qg7 {[%emt 0:00:47]} 38. Qg5 {[%emt 0:00:24]} Rf8 {[%emt 0:00:37]} 39. Qd5 {[%emt 0:03:15]} Qf7 {[%emt 0:01:30]} 40. Rf1 {[%emt 0:00:00]} Qe7 {[%emt 0:00:00]} 41. Rg1 {[%emt 0:04:33]} Qd6 {[%emt 0:05:05]} 42. Qxd6 {[%emt 0:06:09]} Rxd6 {[%emt 0:00:02]} 43. Ne4 {[%emt 0:00:08]} Rc6 {[%emt 0:01:13]} 44. Nc3 {[%emt 0:02:21]} Kg7 {[%emt 0:00:45]} 45. a4 {[%emt 0:00:26]} bxa4 {[%emt 0:05:14]} 46. Nxa4 {[%emt 0:00:16]} Rf4 {[%emt 0:01:33]} 47. Nc3 {[%emt 0:00:37]} h4 {[%emt 0:03:41]} 48. Ne2 {[%emt 0:00:37]} Ra4 {[%emt 0:02:29]} 49. Kd2 {[%emt 0:00:13]} g3 {[%emt 0:00:40]} 50. b3 {[%emt 0:02:33]} Rg4 {[%emt 0:00:50]} 51. Ke3 {[%emt 0:00:51]} Rf6 {[%emt 0:00:51]} 52. Bc4 {[%emt 0:00:25]} g2 {[%emt 0:01:55]} 0-1